Cogmind - Beta 15 @@@ ROGUE MODE // 2025.08.09 @ 12:01:05 Player: FrigidRock Result: Destroyed by G-47 Trooper with Particle Gun Performance ------------- Evolutions (3) 1500 Regions Visited (6) 1200 Robots Destroyed (159) 795 Value Destroyed (5425) 5425 Prototype IDs (20) 400 Alien Tech Used (0) 0 Bonus (432) 432 TOTAL SCORE: 9752 Bonus ------- High Alert Combat Kills 689 Follower Combat Kills 889 Friendly Fire -1146 Cogmind --------- Core Integrity 0/700 Matter 72/500 Energy 290/290 System Corruption 14% Temperature Hot (248) Movement Treading (165) Location -7/Factory Parts ------- > --- POWER (2) -------- Backup Power III Improved Deuterium Engine > --- PROPULSION (4) --- Armored Treads Heavy Treads > --- UTILITY (5) ------ High-capacity Storage Unit High-capacity Matter Pod Advanced Targeting Computer Hardened Medium Armor Plating System Restoration Module > --- WEAPON (2) ------- (None) > --- INVENTORY (20) --- Antimatter Reactor Improved Carbon-fiber Leg Improved Carbon-fiber Leg Improved Heat Sink Hardened Medium Armor Plating Hardened Medium Armor Plating Hardened Medium Armor Plating Gun Armor System Restoration Module System Restoration Module Precision Shock Rifle Gauss Rifle Heavy Battle Rifle Advanced Assault Cannon Improved Grenade Launcher Improved Datajack Plasma Cutter Peak State ------------ > --- POWER ------------ Improved Deuterium Engine Antimatter Reactor > --- PROPULSION ------- Heavy Treads Heavy Treads > --- UTILITY ---------- High-capacity Storage Unit Advanced Targeting Computer Target Analyzer Core Analyzer Recalibrator > --- WEAPON ----------- Precision Shock Rifle Bore Cannon > --- INVENTORY -------- Improved Deuterium Engine Improved Deuterium Engine High-capacity Matter Pod Hardened Medium Armor Plating Gun Armor Heavy Battle Rifle Heavy Battle Rifle Gauss Cannon Improved Grenade Launcher Improved Datajack Plasma Cutter [Rating: 64] Favorites ----------- Power Improved Deuterium Engine Engine Improved Deuterium Engine Power Core Nuclear Core Reactor Antimatter Reactor Propulsion Carbon-fiber Leg Treads Heavy Treads Leg Carbon-fiber Leg Wheel Armored Wheel Hover Unit Gravmag System Utility Medium Storage Unit Device Improved Terrain Scanner Storage Medium Storage Unit Processor Advanced Terrain Scan Processor Hackware System Shield Protection Hardened Medium Armor Plating Weapon Mini Grenade Launcher Energy Gun Precision Shock Rifle Ballistic Gun Precision Assault Rifle Ballistic Cannon Bore Cannon Launcher Mini Grenade Launcher Special Weapon Plasma Cutter Impact Weapon Powered Hammer Special Melee Weapon Improved Datajack Build | -11 -10 -10 -8 -7 -7 -7 ------- Run | Yrd Mat Sub Mat Fac Was Fac Slots Evolved 6 | . . . 4 2 . . Power 1 | . . . . 1 . . Propulsion 2 | . . . 2 . . . Utility 3 | . . . 2 1 . . Weapon . | . . . . . . . Parts Attached 129 | 8 5 4 43 48 6 15 Power 21 | 1 . . 7 10 2 1 Engine 13 | 1 . . 3 8 1 . Core 7 | . . . 4 2 . 1 Reactor 1 | . . . . . 1 . Propulsion 44 | 2 2 . 16 20 2 2 Treads 6 | . . . 2 . 2 2 Leg 25 | 2 . . 8 15 . . Wheel 5 | . 2 . 2 1 . . Hover 8 | . . . 4 4 . . Flight . | . . . . . . . Utility 31 | 3 . 1 9 8 1 9 Device 12 | 2 . . 4 4 . 2 Storage 4 | 1 . . 1 . . 2 Processor 7 | . . . 2 3 . 2 Hackware 2 | . . . 1 . . 1 Protection 6 | . . 1 1 1 1 2 Artifact . | . . . . . . . Weapon 33 | 2 3 3 11 10 1 3 Energy Gun 8 | 1 2 . 3 1 . 1 Energy Cannon . | . . . . . . . Ballistic Gun 10 | 1 . . 6 2 . 1 Ballistic Cannon 2 | . . . . . 1 1 Launcher 6 | . 1 3 2 . . . Special Weapon 1 | . . . . 1 . . Impact Weapon 5 | . . . . 5 . . Slashing Weapon . | . . . . . . . Piercing Weapon . | . . . . . . . Special Melee Weapon 1 | . . . . 1 . . Unidentified Prototypes 6 | . . . 3 2 . 1 Corrupted Parts 2 | . . . . 2 . . System Corruption 5 | . . . . 5 . . Parts Lost 34 | . . 4 8 15 . 7 Power 8 | . . 1 2 4 . 1 Propulsion 11 | . . 2 1 7 . 1 Utility 10 | . . 1 2 4 . 3 Weapon 5 | . . . 3 . . 2 Highest Loss Streak 7 | . . 1 2 7 . 3 To Critical Strikes 1 | . . . . 1 . . Average Backups 9 | . 5 8 8 9 9 11 Power 1 | . 1 1 1 . 2 1 Propulsion . | . . . . 1 . . Utility 2 | . 1 3 2 2 2 3 Weapon 3 | . 3 3 3 4 2 4 Tool/Special . | . . . . . . . Unused Backups 17 | . 3 . 3 . . 11 Power 2 | . . . 2 . . . Propulsion 2 | . . . . . . 2 Utility 4 | . . . . . . 4 Weapon 9 | . 3 . 1 . . 5 Tool/Special . | . . . . . . . Average Slot Usage (%) 85 | . 100 84 83 86 86 82 Engine 8 | . 14 13 3 5 9 8 Core 2 | . . . 3 5 . . Reactor 1 | . . . . . 4 5 Treads 4 | . . . 5 . 8 14 Leg 9 | . 15 . 17 22 . . Wheel 4 | . 12 16 2 . . . Hover 1 | . . . 2 1 12 . Device 5 | . 14 6 6 8 . . Storage 9 | . 14 14 8 7 7 7 Processor 10 | . . . 7 12 23 19 Hackware 2 | . . . 7 3 . . Protection 3 | . . 4 1 1 7 7 Energy Gun 5 | . 22 5 4 3 7 4 Ballistic Gun 3 | . 2 . 10 7 . . Ballistic Cannon 2 | . . . . . 2 9 Launcher 5 | . 2 22 1 . 1 . Peak Build Rating 64 | 9 12 14 38 52 63 64 Average Rating 34 | 5 10 11 27 39 53 58 On Entrance 24 | . 7 12 11 38 42 63 Naked Turns 10 | . . . 10 . . . Heaviest Build 90 | 13 17 18 29 43 57 90 Greatest Support 140 | 20 24 24 65 72 140 140 Greatest Overweight (x) 8 | 1 1 5 8 6 1 1 Average Overweight (x) . | . . . . . . . Largest Inventory Capacity 20 | 8 8 8 10 10 10 20 Average Capacity 10 | 7 8 8 9 10 10 17 Most Carried 17 | 2 8 8 10 10 10 17 Average Carried 9 | . 5 7 8 9 9 11 Final Capacity 20 | 8 8 8 10 10 10 20 Final Carried 17 | 2 8 8 10 9 10 17 Class Distribution -------------------- 59% | Mutant 40% | Scavenger-Mutant Dominant Class ---------------- Mutant | -10/Materials Mutant | -10/Subcaves Mutant | -8/Materials Mutant | -7/Factory Scavenger-Mutant | -7/Waste Scavenger-Mutant | -7/Factory Resources | -11 -10 -10 -8 -7 -7 -7 ----------- Run | Yrd Mat Sub Mat Fac Was Fac Matter Collected 4785 | 288 247 538 1085 1399 182 1046 Remotely . | . . . . . . . Salvage Created 6075 | 177 278 275 1528 1990 405 1422 Parts 311 | 18 20 21 69 92 14 77 Haulers Intercepted 6 | . 2 . 3 . . 1 Recyclers Shooed 6 | 2 2 . . 1 . 1 Parts Field Recycled . | . . . . . . . Retrieved Matter . | . . . . . . . Parts Self-Destructed 9 | . . 9 . . . . Prevented . | . . . . . . . Kills | -11 -10 -10 -8 -7 -7 -7 ------- Run | Yrd Mat Sub Mat Fac Was Fac Combat Hostiles Destroyed 100 | . 3 14 29 31 1 22 Melee 1 | . . . . 1 . . Guns 44 | . 1 . 20 18 . 5 Cannons 17 | . . . . . . 17 AOE 31 | . 2 14 9 5 1 . Classes Destroyed 20 | 2 4 1 5 4 2 2 Worker 11 | . . . 3 5 . 3 Builder 6 | . 1 . 2 . . 3 Tunneler 6 | 5 1 . . . . . Hauler 6 | . 2 . 3 . . 1 Recycler 14 | 1 1 . 1 7 . 4 Mechanic 1 | . . . . . . 1 Operator 1 | . . . 1 . . . Watcher 7 | . 2 . 2 1 . 2 Swarmer 3 | . . . . 3 . . Grunt 51 | . 3 . 22 16 . 10 Brawler 4 | . . . 1 1 . 2 Duelist 4 | . . . . 1 . 3 Sentry 5 | . . . 4 . . 1 Specialist 7 | . . . 2 4 . 1 Hunter 4 | . . . . 2 . 2 Programmer 6 | . . . . 4 . 2 Heavy 1 | . . . . . . 1 Compactor 1 | . . . . . 1 . Subdweller 14 | . . 14 . . . . Surgeon 1 | . . . . . . 1 Wasp 4 | . . . . . 4 . Thug 1 | . . . . . . 1 Martyr 1 | . . . . . 1 . Best Kill Streak 10 | 6 6 6 10 6 1 6 Combat Bots Only 7 | . 3 6 7 4 1 4 Max Kills in Single Turn 5 | 1 2 2 3 3 5 2 Gunslinging . | . . . . . . . Exploded 3 | . 1 2 2 3 1 . Melee 1 | . . . . 1 . . Uniques/NPCs Destroyed . | . . . . . . . Combat | -11 -10 -10 -8 -7 -7 -7 -------- Run | Yrd Mat Sub Mat Fac Was Fac Hostile Shots Fired 624 | . 11 26 158 205 . 224 Missed 169 | . 2 10 40 41 . 76 Hits 455 | . 9 16 118 164 . 148 Melee 14 | . . . 1 8 . 5 Projectile 441 | . 9 16 117 156 . 143 AOE 1 | . . . . . . 1 Critical Strikes 24 | . . . 4 11 . 9 Part Disruptions 1 | . . . . 1 . . Damage Taken 8031 | . 110 665 2146 2702 33 2375 Core 1127 | . 11 104 310 503 . 199 Absorbed by Shields 359 | . . . . 359 . . Regen/Repaired (Parts) 234 | . . . . . 128 106 Core Remaining (%) 65 | 100 . 54 43 . . . Volleys Fired 383 | 18 24 42 100 81 11 107 Largest 2 | 2 2 2 2 2 1 2 Hottest 112 | 60 112 60 112 83 55 103 Shots Fired 672 | 29 43 61 173 154 11 201 Gun 419 | 29 38 6 150 149 10 37 Cannon 165 | . . . . . 1 164 Launcher 87 | . 5 55 23 4 . . Special 1 | . . . . 1 . . Kinetic 394 | 18 4 . 92 115 1 164 Thermal 149 | 11 34 6 36 34 . 28 Explosive 87 | . 5 55 23 4 . . Electromagnetic 42 | . . . 22 1 10 9 Robot Hit Streak 21 | 8 6 9 17 21 9 10 Robot Miss Streak 6 | 1 4 2 4 2 1 6 Penetration Max 1 | . . . . . . 1 Secondary Targets 5 | . . . 3 2 . . Max Gunslinging Chain 1 | . . . 1 1 . . Shots Hit Robots 446 | 21 26 24 120 141 8 106 Core Hits 254 | 8 16 23 86 53 7 61 Critical Kills 11 | . . . . . 1 10 Critical Parts Destroyed 15 | . . . . 7 . 8 Critical Strikes 37 | . . . 2 7 1 27 Burn 4 | . . . 2 . . 2 Destroy 21 | . . . . . 1 20 Blast 5 | . . . . . . 5 Smash 7 | . . . . 7 . . Melee Attacks 43 | . . . . 43 . . Impact 40 | . . . . 40 . . Slashing . | . . . . . . . Piercing . | . . . . . . . Sneak Attacks 5 | . . . . 5 . . Combat Hostiles . | . . . . . . . Follow-up Attacks 5 | . . . . 5 . . Damage Inflicted 14944 | 196 606 2388 3652 4339 337 3426 Guns 5415 | 196 303 . 1932 2401 9 574 Cannons 2799 | . . . . . 46 2753 Explosions 5160 | . 303 2388 1712 475 282 . Melee 1463 | . . . . 1463 . . Ramming 107 | . . . 8 . . 99 Kinetic 5976 | 86 25 . 1209 1857 46 2753 Thermal 2339 | 110 278 . 680 512 282 477 Explosive 4639 | . 303 2388 1473 475 . . Electromagnetic 420 | . . . 282 32 9 97 Impact 1463 | . . . . 1463 . . Slashing . | . . . . . . . Piercing . | . . . . . . . Highest Corruption 15 | . . . . 9 6 15 Average Corruption 8 | . . . . 6 6 9 Corruption Purged 7 | . . . . 5 . 2 Corruption Blocked . | . . . . . . . Effects 118 | . . . . 29 12 77 Message Errors 27 | . . . . 6 4 17 Matter Fused 34 | . . . . 4 3 27 Heat Flow Errors 9 | . . . . 5 . 4 Energy Discharges 14 | . . . . 5 1 8 Parts Rejected 2 | . . . . . . 2 Parts Fused 2 | . . . . . . 2 Data Loss (minor) 12 | . . . . 5 2 5 Data Loss (major) 1 | . . . . . . 1 Misfires 7 | . . . . 1 1 5 Alerts 2 | . . . . 1 . 1 Misdirections 2 | . . . . . . 2 Weapon Failures 6 | . . . . 2 1 3 Overload Shots . | . . . . . . . Overflow Damage 922 | . . 18 35 787 3 79 Projectiles 81 | . . . . 8 . 73 Explosions 61 | . . 18 35 5 3 . Melee 780 | . . . . 774 . 6 Knockbacks 32 | . . . . 15 . 17 Impact 13 | . . . . 13 . . Kinetic 15 | . . . . . . 15 Secondary 4 | . . . . 2 . 2 Self-Inflicted Damage 379 | . 7 155 191 26 . . Shots 16 | . 1 8 6 1 . . Rammed 15 | . . . 3 . . 12 Targets Rammed 17 | . . . 4 . . 13 Kicked 1 | . . . 1 . . . Crushed 1 | . . . . . . 1 Highest Temperature 421 | 40 343 . 375 273 210 421 Average Temperature 105 | 26 104 . 86 73 94 126 Received Heat Transfer 2533 | . 57 117 972 826 . 561 Effects 19 | . 1 . . . 3 15 Shutdowns 6 | . . . . . . 6 Energy Bleed 3 | . 1 . . . . 2 Interference 8 | . . . . . 3 5 Matter Decay 1 | . . . . . . 1 Short Circuit 1 | . . . . . . 1 Siege Activations . | . . . . . . . Martial Activations . | . . . . . . . Shielding Activations . | . . . . . . . Robots Disrupted . | . . . . . . . Combat Hostiles . | . . . . . . . Robots Corrupted 13 | . . . . 12 . 1 Combat Hostiles 7 | . . . . 7 . . Parts Fried 9 | . . . . 8 . 1 Impact Corruptions 28 | . . . . 27 . 1 Robots Melted . | . . . . . . . Combat Hostiles . | . . . . . . . Parts Melted 8 | . . . 1 3 . 4 Heat Transferred 4488 | 250 704 . 1460 962 150 962 Parts Sabotaged . | . . . . . . . Parts Stolen . | . . . . . . . Parts Stripped . | . . . . . . . Power Chain Reactions 3 | . . . 2 . 1 . Alert | -11 -10 -10 -8 -7 -7 -7 ------- Run | Yrd Mat Sub Mat Fac Was Fac Maximum Alert Level 4 | . . . 2 2 . 4 Low Security (%) 39 | 100 100 . 48 13 100 31 Level 1 30 | . . . 23 70 . 5 Level 2 19 | . . . 28 15 . 29 Level 3 6 | . . . . . . 22 Level 4 3 | . . . . . . 12 Level 5 . | . . . . . . . High Security . | . . . . . . . Max Security . | . . . . . . . Peak Influence 1307 | 20 106 . 597 443 143 1307 Initial 263 | . . . . 263 143 . Average 328 | 3 47 . 254 302 45 554 Influence Increases 4518 | 30 145 . 1138 1070 43 2092 Destroy 0b10 Robot/C 2120 | . 60 . 580 620 . 860 Destroy 0b10 Robot/NC 265 | 30 35 . 60 65 . 75 Destroy Leader 476 | . 18 . 140 102 . 216 Allied During Kill 431 | . . . . . . 431 Successful Hack 36 | . . . 36 . . . Disable Machine 285 | . . . 90 60 . 135 Anti-Garrison Action 350 | . . . . 150 . 200 Destroy Structure 345 | . 32 . 112 28 43 130 Partial Spotted 45 | . . . 45 . . . Lose Combat Pursuer 165 | . . . 75 45 . 45 Influence Decreases 3234 | 30 130 15 557 1240 454 808 Entered New Map 594 | . . 8 . 318 268 . Time Decay 1980 | 30 130 7 477 622 146 568 Lost Part 300 | . . . 80 150 . 70 Lost Ally 210 | . . . . . 40 170 Purge Threat 150 | . . . . 150 . . Squads Dispatched 27 | . . . 4 11 . 12 Investigation 3 | . . . . 2 . 1 Extermination 6 | . . . . 3 . 3 Reinforcement 12 | . . . 4 2 . 6 Assault 6 | . . . . 4 . 2 Garrison . | . . . . . . . Intercept . | . . . . . . . Searches Triggered . | . . . . . . . Construction Impeded 4 | . . . 1 . . 3 Haulers Reinforced . | . . . . . . . Active Scanning Responses . | . . . . . . . Cargo Convoy Interrupts 1 | . . . . 1 . . Stealth | -11 -10 -10 -8 -7 -7 -7 --------- Run | Yrd Mat Sub Mat Fac Was Fac Distress Signals 6 | . 1 . 3 . . 2 Communications Jammed . | . . . . . . . Distress Signals . | . . . . . . . Times Spotted 171 | . 5 14 47 44 6 55 Peak Tracking Total 6 | . 3 3 6 4 5 5 Tactical Retreats 9 | . . . 3 3 . 3 Traps | -11 -10 -10 -8 -7 -7 -7 ------- Run | Yrd Mat Sub Mat Fac Was Fac Traps Triggered 13 | . . 3 1 6 . 3 Indirectly . | . . . . . . . Trap Hack Attempts 8 | . . . . 8 . . Triggered . | . . . . . . . Disarmed . | . . . . . . . Reprogrammed 3 | . . . . 3 . . Reused . | . . . . . . . Traps Extracted . | . . . . . . . Installed . | . . . . . . . Triggered . | . . . . . . . Machines | -11 -10 -10 -8 -7 -7 -7 ---------- Run | Yrd Mat Sub Mat Fac Was Fac Machines Disabled 24 | . . 4 6 5 . 9 Max in Single Turn 4 | . . 4 2 1 . 2 Garrison Access 3 | . . . . 2 . 1 Machines Repaired . | . . . . . . . Machines Dismantled 1 | . . . . 1 . . Machines Sabotaged . | . . . . . . . Overloaded Fab Kills . | . . . . . . . Hacking | -11 -10 -10 -8 -7 -7 -7 --------- Run | Yrd Mat Sub Mat Fac Was Fac Machines Accessed 23 | . 2 3 6 6 . 6 Terminals 12 | . 2 . 6 2 . 2 Fabricators 4 | . . . . 1 . 3 Repair Stations . | . . . . . . . Recycling Units 2 | . . . . 2 . . Scanalyzers . | . . . . . . . Garrison Access 2 | . . . . 1 . 1 Total Hacks 49 | . 6 5 18 11 . 9 Successful 23 | . 1 5 11 3 . 3 Failed 26 | . 5 . 7 8 . 6 Catastrophic 7 | . 1 . 1 1 . 4 Database Lockouts . | . . . . . . . Manual 36 | . 5 2 15 5 . 9 Terminals 32 | . 6 . 18 5 . 3 Fabricators 8 | . . . . 3 . 5 Repair Stations . | . . . . . . . Recycling Units 2 | . . . . 2 . . Scanalyzers . | . . . . . . . Garrison Access 2 | . . . . 1 . 1 Terminal Hacks 14 | . . 5 8 1 . . Record 3 | . . 3 . . . . Robot Analysis 5 | . . . 5 . . . Prototype ID Bank 2 | . . . 2 . . . Open Door 1 | . . 1 . . . . Branch Access Points 1 | . . . 1 . . . Unreport Threat 1 | . . . . 1 . . Proto ID Catalog 1 | . . 1 . . . . Fabricator Hacks . | . . . . . . . Repair Station Hacks . | . . . . . . . Recycling Unit Hacks 1 | . . . . 1 . . Retrieve Components 1 | . . . . 1 . . Scanalyzer . | . . . . . . . Garrison Access Hacks . | . . . . . . . Unauthorized Hacks 8 | . 1 . 3 1 . 3 Terminals 5 | . 1 . 3 . . 1 Botnet 5 | . 1 . 3 . . 1 Fabricators 2 | . . . . 1 . 1 Liberate 1 | . . . . 1 . . Haulers 1 | . . . . . . 1 Repair Stations . | . . . . . . . Recycling Units . | . . . . . . . Scanalyzers . | . . . . . . . Garrison Access 1 | . . . . . . 1 Jam 1 | . . . . . . 1 Data Cores Recovered . | . . . . . . . Used . | . . . . . . . Hacking Detections 18 | . 2 . 6 5 . 5 Full Trace Events 1 | . . . . 1 . . Feedback Events . | . . . . . . . Feedback Blocked . | . . . . . . . Robot Schematics Acquired . | . . . . . . . Robots Built . | . . . . . . . Authchips . | . . . . . . . Time . | . . . . . . . Total Robot Build Rating . | . . . . . . . Part Schematics Acquired . | . . . . . . . Parts Built . | . . . . . . . Authchips . | . . . . . . . Time . | . . . . . . . Total Part Build Rating . | . . . . . . . Parts Repaired . | . . . . . . . Time . | . . . . . . . Parts Recycled . | . . . . . . . Recycled Matter . | . . . . . . . Retrieved Matter . | . . . . . . . Retrieved Components 9 | . . . . 9 . . Parts Scanalyzed . | . . . . . . . Part Schematics Acquired . | . . . . . . . Parts Damaged . | . . . . . . . Bothacking | -11 -10 -10 -8 -7 -7 -7 ------------ Run | Yrd Mat Sub Mat Fac Was Fac Used RIF Installer . | . . . . . . . Robots Hacked 1 | . . . . 1 . . Non-combat 1 | . . . . 1 . . Combat . | . . . . . . . Robot Hacks Applied 1 | . . . . 1 . . parse_system 1 | . . . . 1 . . Relay Couplers Released 3 | . . . . 3 . . Machine Destruction 3 | . . . . 3 . . Fabnet Peak Effective % . | . . . . . . . Robots Rewired . | . . . . . . . Allies Hacked . | . . . . . . . Hacks Repelled . | . . . . . . . Allies | -11 -10 -10 -8 -7 -7 -7 -------- Run | Yrd Mat Sub Mat Fac Was Fac Total Allies 19 | . . . . . 19 . Largest Group 19 | . . . . . 19 12 Highest-Rated Group 465 | . . . . . 465 325 Highest-Rated Ally 35 | . . . . . 35 35 Total Orders . | . . . . . . . Ally Attacks 257 | . . . . . 119 138 Total Damage 6112 | . . . . . 3339 2773 Kills 27 | . . . . . 5 22 Allies Corrupted 1 | . . . . . . 1 Allies Melted 1 | . . . . . . 1 Intel | -11 -10 -10 -8 -7 -7 -7 ------- Run | Yrd Mat Sub Mat Fac Was Fac Active Infowar (turns) 3175 | 48 317 800 718 1292 . . Optics 107 | . . . . 107 . . Sensors 241 | . . . 241 . . . Terrain 1696 | 34 . . 477 1185 . . Seismic 1131 | 14 317 800 . . . . Robot Analysis Total 5 | . . . 5 . . . Derelict Logs Recovered 1 | . . 1 . . . . Drone Launches . | . . . . . . . Drone Recoveries . | . . . . . . . Exploration | -11 -10 -10 -8 -7 -7 -7 ------------- Run | Yrd Mat Sub Mat Fac Was Fac Turns Passed 8096 | 163 317 1860 1262 2100 491 1903 Spaces Moved 5128 | 93 215 1491 801 1237 380 911 Core 296 | 14 . 136 139 7 . . Treads 1109 | . . . 12 . 186 911 Legs 1741 | 79 109 . 362 1191 . . Wheels 1623 | . 106 1355 162 . . . Hover 359 | . . . 126 39 194 . Flight . | . . . . . . . Fastest Speed 42 | 50 90 90 42 48 48 160 Average Speed 123 | 114 105 114 98 125 118 165 Slowest Speed 450 | 120 120 300 450 350 160 240 Overloaded Moves . | . . . . . . . Propulsion Burnouts . | . . . . . . . Robots Hopped . | . . . . . . . Potential Cave-ins 11 | . . 11 . . . . Cave-ins Triggered . | . . . . . . . Exploration Rate (%) 44 | 3 24 74 64 29 96 24 Regions Visited 6 Branch Regions 1 Pre-discovered Areas 2 | . . 2 . . . . Known Exits Taken . | . . . . . . . Unknown Exits Taken 4 | 1 1 1 1 . . . Scrap Searched . | . . . . . . . Spaces Dug 103 | . . 81 . 18 . 4 Terrain Destroyed 618 | . 37 323 132 34 13 79 Melee . | . . . . . . . Projectile 51 | . . . 1 1 . 49 AOE 567 | . 37 323 131 33 13 30 Terrain Rammed . | . . . . . . . Walls Destroyed . | . . . . . . . Machines Disabled . | . . . . . . . Actions | -11 -10 -10 -8 -7 -7 -7 --------- Run | Yrd Mat Sub Mat Fac Was Fac Total 6143 | 121 263 1576 1121 1546 413 1103 Wait 243 | . 1 32 114 70 1 25 Move 5123 | 92 214 1490 800 1237 379 911 Hop . | . . . . . . . Pick Up 42 | 2 8 2 11 4 4 11 Fast Attach 90 | 8 5 1 30 32 5 9 Attach 29 | . . 1 11 9 1 7 Detach 21 | . 1 . 8 6 1 5 Swap 51 | . 3 6 12 22 1 7 Drop 92 | 1 7 2 31 33 10 8 Fire 383 | 18 24 42 100 81 11 107 Melee 36 | . . . . 36 . . Ram 3 | . . . 3 . . . Kick 1 | . . . 1 . . . Crush 13 | . . . . . . 13 Escape Stasis . | . . . . . . . Rewire . | . . . . . . . Trap 8 | . . . . 8 . . Miscellaneous 8 | . . . . 8 . . Route ------- -11/Scrapyard -10/Materials -10/Subcaves (discovered 2 exits: *Mat x2) -8/Materials -7/Factory -7/Waste -7/Factory (discovered 2 exits: *Fac x2) History --------- Turn | Location | Event 22 | -11/Scrapyard | Discovered new exit (range 14) 164 | -11/Scrapyard | Entered Materials 302 | -10/Materials | Discovered new exit (range 10) 306 | -10/Materials | Build established: Mutant 481 | -10/Materials | Entered Subcaves 482 | -10/Subcaves | Approached by a straggling Scientist 568 | -10/Subcaves | Discovered new exit (range 11) 576 | -10/Subcaves | Learned location of Zion (-6) 576 | -10/Subcaves | Met a Zionite searching for "candidates" 595 | -10/Subcaves | Shifting Twisted Machinery released Sub. Power Source 605 | -10/Subcaves | A swath of the cavern ceiling suddenly collapsed 788 | -10/Subcaves | Ambushed by Subdweller buried in earth 788 | -10/Subcaves | Ambushed by Subdweller buried in earth 804 | -10/Subcaves | Ambushed by Subdweller buried in earth 804 | -10/Subcaves | Ambushed by Subdweller buried in earth 1207 | -10/Subcaves | Visited 4L-MR0's lab 1238 | -10/Subcaves | Found Gun Armor 1596 | -10/Subcaves | Shifting Twisted Machinery released Sub. Laser 1649 | -10/Subcaves | Shifting Twisted Machinery released Sub. Laser 1926 | -10/Subcaves | Ambushed by Subdweller buried in earth 2049 | -10/Subcaves | Discovered new exit (range 16) 2269 | -10/Subcaves | Visited Clippyterm 2278 | -10/Subcaves | Learned Factory garrison access intel 2341 | -10/Subcaves | Entered Materials 2341 | -8/Materials | Evolved 4 slots: Propulsion x2, Utility x2 3228 | -8/Materials | Core integrity fell below 50% 3296 | -8/Materials | Destroyed 7 combat bots 3309 | -8/Materials | Build established: Scavenger-Mutant 3481 | -8/Materials | Discovered new exit (range 9) 3603 | -8/Materials | Entered Factory 3603 | -7/Factory | Evolved 2 slots: Power x1, Utility x1 3604 | -7/Factory | Loaded intel: 4 garrison access locations 3701 | -7/Factory | Build established: Mutant 4435 | -7/Factory | Discovered new exit (range 14) 4586 | -7/Factory | Cargo convoy interrupted 4647 | -7/Factory | Lost 7 parts (1p4n2u) 4802 | -7/Factory | Core integrity fell below 50% 4819 | -7/Factory | Lost 3 parts (1p1n1u) 5450 | -7/Factory | Build established: Scavenger-Mutant 5703 | -7/Factory | Sucked down chute 5703 | -7/Factory | Entered Waste 5712 | -7/Waste | Warlord forces began an assault 5716 | -7/Waste | Spotted C-40 Crusher 5725 | -7/Waste | Spotted C-40 Crusher 5734 | -7/Waste | Spotted C-40 Crusher 5734 | -7/Waste | Spotted C-40 Crusher 5743 | -7/Waste | Destroyed C-40 Crusher 5750 | -7/Waste | Allies destroyed C-40 Crusher 5761 | -7/Waste | Allies destroyed C-40 Crusher 5762 | -7/Waste | Spotted C-40 Crusher 5767 | -7/Waste | Spotted C-40 Crusher 5771 | -7/Waste | Allies destroyed C-40 Crusher 5796 | -7/Waste | Lost 6 allies 5806 | -7/Waste | Discovered new exit (range 12) 6194 | -7/Waste | Entered Factory 6194 | -7/Factory | Accompanied by 12 allies 6961 | -7/Factory | System corruption reached 10% 6994 | -7/Factory | First assault squad dispatched 7103 | -7/Factory | Lost 3 allies 7348 | -7/Factory | Discovered new exit (range 13) 7408 | -7/Factory | Identified exit to Factory 7479 | -7/Factory | Discovered exit to Factory (range 9) 7639 | -7/Factory | Lost 3 parts (1p1n1u) 7688 | -7/Factory | Core integrity fell below 20% 7689 | -7/Factory | Lost 3 allies 7920 | -7/Factory | Build established: Mutant 8097 | -7/Factory | Destroyed by G-47 Trooper with Particle Gun Last Messages --------------- 08076_ R-06 Scavenger collects Aluminum Leg. 08079_ System corrupted: FCS attempts to trigger Gauss Cannon. 08079_ System corrupted: Gauss Cannon misfires. 08079_ U-05 Engineer destroyed. 08079_ K-01 Serf collects debris. 08084_ Slug penetrates Wall. 08084_ K-01 Serf collects debris. 08087_ R-06 Scavenger collects Mic. Nuclear Core. 08089_ K-01 Serf collects debris. 08090_ R-06 Scavenger collects Shock Rifle. 08092_ U-05 Engineer builds a Wall. 08092_ Bore Cannon destroyed. 08092_ Gauss Cannon destroyed. 08092_ Critical hit (Burn: +37). 08093_ K-01 Serf collects debris. 08094_ System corrupted: Matter fused (-9). 08094_ Acquired 27 matter. 08095_ R-06 Scavenger collects Unknown Processor. 08096_ K-01 Serf collects debris. 08096_ Acquired 40 matter. Map ----- +----------------------------------------------------+ | ?????????????????????????????????????????????????? | | ?????????????????????????????????????????????????? | | ?????????????????????????????????????????????????? | | ?????????????????????????????????????????????????? | | ?????????????????????????????????????????????????? | | ?????????????????????????????????????????????????? | | ?????????????????????????????????????????????????? | | ?????????????????????????????????????????????????? | | ?????????????????????????????????????????????????? | | ?????????????????????????????????????????????????? | | ?????????????????????????????????????????????????? | | ?????????????????????????????????????????????????? | | ?????????????????????????????????????????????????? | | ???????????????????????"?????????????????????????? | | ??????????????????????? ????????????????????????? | | ??????????????????????? ????#???????????????????? | | ??????????????????????? ??" #?????????????" """ ? | | ??????????????????????? """ ????????????""" """ ? | | ??????????????????????? ! "#????? ??? ? | | ?????????????##########+########### "??? " | | ?????????????# /] *%= % ???? " | | ?????????????# ] uk| ???? " | | ?????????????# ^ r % ?????[[* | | ?????????????# % r % ?????** | | ?????????????# ? ?? % ??????? | | ?????????????# %@#####????#+########???# | | ?????????????# %# ?????#% %% #??## | | ?????????????# # ???????# % #??## | | ?????????????# ! %#????????# %""" #??## | | ?????????????# # """"??# """ #???#% | | ?????????????# + """"??" """ ##### | | ?????????????# gg! # """ ??# %% +% | | ?????????????# gg #? ""????# """ ###### | | ?????????????# ^ #???"????# """ % ## | | ???????? " """ #????????# """ ## | | ???????? % """""" ##+#?????# " " ## | | ???????? """""" #?????# """ ## | | ???????? """""" #?????# """ ## | | ????????? #?????# """ ## | | ?????????+#### % #?????# ## [ | | ?????????????# % #####?# """ ## = | | ?????????????# "" ""% #?# """ ## | | ?????????????# ""R""% ### """ ## | | ?????????????# """" + ## | | ?????????????+ ############# | | ?????????????#? #???????????##### | | ?????????????? ###############???????????????? | | ?????????????? ???????????????????????????????? | | ?????????????? ?????????????????????????????????? | | ?????????????????????????????????????????????????? | +----------------------------------------------------+ Best States ------------- Heat Dissipation 34 Energy Generation 32 Energy Capacity 515 Matter Stores 389 Matter Capacity 500 Sight Range 20 Robot Scan Range 14 Terrain Scan Range 16 Terrain Scan Density 210 Additional Mass Support 6 Armor Coverage 450 Evasion (%) 56 Targeting Accuracy 8 Target Analysis 5 Core Analysis 6 Recoil Reduction 4 Kinecelleration 30 Defensive Hacking 10 Item Schematics ----------------- None Robot Schematics ------------------ None Fabricated ------------ Nothing Repaired ---------- Nothing Alien Tech Used ----------------- None Achievements -------------- None Challenges ------------ None Game ------ Seed ShadeMicroFragment Manual? 0 Play Time 01:17:30 Cumulative 319.1 hours Start 2025.08.09 @ 10:39:53 End 2025.08.09 @ 12:01:05 Sessions 1 Manual Loads 0 Difficulty Rogue Special Mode None Game No. 135 Rogue 64 Adventurer 68 Explorer 3 Win Type - Total 25 Types 16/2/1/4/1/0/0/0/0/1 Lore% 76 Gallery% 74 Achievement% 71 Wizard Run 0 Options --------- Layout 0 ASCII 0 Keyboard 0 Movement Numpad Keybinds 0 Fullscreen 1 Font 24/Smallcaps Map View 76x50 Zoom Use 0% Tactical HUD 1 Map Filters NONE Filters NONE Steam 1 RUN: 5aa39707-08a7-44db-8cd0-5a226e7533b1